fUST/lending_fUST_20251130
["ID","MTS","AMOUNT","RATE_DAILY","PERIOD"]
[395141144,1764473588246,-300.0,9.142e-05,2]
[395141145,1764473591939,-171.58522658,9.142e-05,2]
[395141146,1764473593828,-479.64949997,9.142e-05,2]
[395141147,1764473596399,-310.69735495,9.142e-05,2]
[395141148,1764473598408,-174.00637952,9.142e-05,2]
[395141149,1764473599929,-471.58642866,9.142e-05,2]
[395141150,1764473603739,-488.98030745,9.142e-05,2]
[395141151,1764473604487,808.85603361,9.042e-05,2]
[395141152,1764473616289,212.1316441,8.303e-05,2]
[395141176,1764473773139,518.6427025,9.095e-05,2]
[395141178,1764473774642,-301.16359566,9.187e-05,2]
[395141182,1764473781216,217.47910684,9.095e-05,2]
[395141185,1764473789532,217.47910684,9.095e-05,2]
[395141186,1764473797671,217.47910684,9.095e-05,2]
[395141188,1764473805474,217.47910684,9.095e-05,2]
[395141204,1764473813965,217.47910684,9.095e-05,2]
[395141211,1764473821691,217.47910684,9.095e-05,2]
[395141213,1764473822480,-217.47910684,9.187e-05,2]
[395141215,1764473829734,263.15519251,9.14e-05,2]
[395141220,1764473838545,-263.15519251,9.232e-05,2]
[395141224,1764473844940,482.13579511,9.141e-05,2]
[395141231,1764473852688,2400.0,9.141e-05,2]
[395141233,1764473854089,-1200.0,9.233e-05,2]
[395141234,1764473854117,-1200.0,9.233e-05,2]
[395141244,1764473870331,-300.0,9.323e-05,2]
[395141248,1764473874818,571.0,9.231e-05,2]
[395141254,1764473886519,-300.0,9.324e-05,2]
[395141255,1764473886549,-271.0,9.324e-05,2]
[395141256,1764473886579,-1200.0,9.324e-05,2]
[395141257,1764473886606,-300.0,9.324e-05,2]
[395141259,1764473897633,500.0,9.231e-05,2]
[395141262,1764473902135,-500.0,9.324e-05,2]
[395141271,1764473921332,-3724.7560783,9.232e-05,2]
[395141282,1764473923877,-7929.45524952,9.325e-05,2]
[395141284,1764473924096,-10000.01,9.325e-05,2]
[395141285,1764473924304,-10000.01,9.325e-05,2]
[395141286,1764473924464,-10000.01,9.325e-05,2]
[395141288,1764473924668,-10000.01,9.325e-05,2]
[395141289,1764473924856,-2070.50475048,9.325e-05,2]
[395141300,1764473945324,186.03428632,9.324e-05,2]
[395141339,1764473961649,500.0,9.324e-05,2]
[395141340,1764473961683,500.0,9.324e-05,2]
[395141341,1764473961712,500.0,9.324e-05,2]
[395141342,1764473961741,500.0,9.324e-05,2]
[395141343,1764473961771,500.0,9.324e-05,2]
[395141344,1764473961804,500.0,9.324e-05,2]
[395141345,1764473961849,500.0,9.324e-05,2]
[395141346,1764473961879,500.0,9.324e-05,2]
[395141347,1764473961907,500.0,9.324e-05,2]
[395141348,1764473961961,500.0,9.324e-05,2]
[395141349,1764473961997,500.0,9.324e-05,2]
[395141350,1764473962026,172.96621272,9.324e-05,2]
[395141351,1764473962051,327.03378728,9.324e-05,2]
[395141352,1764473962081,500.0,9.324e-05,2]
[395141353,1764473962110,500.0,9.324e-05,2]
[395141354,1764473962141,500.0,9.324e-05,2]
[395141355,1764473962169,500.0,9.324e-05,2]
[395141356,1764473962199,500.0,9.324e-05,2]
[395141357,1764473962229,500.0,9.324e-05,2]
[395141358,1764473962257,500.0,9.324e-05,2]
[395141359,1764473962295,500.0,9.324e-05,2]
[395141360,1764473962324,500.0,9.324e-05,2]
[395141361,1764473962357,500.0,9.324e-05,2]
[395141362,1764473962391,500.0,9.324e-05,2]
[395141363,1764473962424,500.0,9.324e-05,2]
[395141364,1764473962475,191.85150849,9.324e-05,2]
[395141365,1764473962534,500.0,9.324e-05,2]
[395141366,1764473962590,500.0,9.324e-05,2]
[395141367,1764473962692,500.0,9.324e-05,2]
[395141368,1764473962741,500.0,9.324e-05,2]
[395141369,1764473962853,500.0,9.324e-05,2]
[395141384,1764473996105,500.0,9.324e-05,2]
[395141385,1764473996137,2400.0,0.0002,30]
[395141386,1764473996167,481.12470423,9.324e-05,2]
[395141387,1764473996188,18.87529577,9.324e-05,2]
[395141388,1764473996215,532.30671198,9.324e-05,2]
[395141389,1764473996243,500.0,9.324e-05,2]
[395141390,1764473996270,500.0,9.324e-05,2]
[395141391,1764473996302,500.0,9.324e-05,2]
[395141392,1764473996330,500.0,9.324e-05,2]
[395141393,1764473996368,500.0,9.324e-05,2]
[395141394,1764473996397,500.0,9.324e-05,2]
[395141395,1764473996427,500.0,9.324e-05,2]
[395141396,1764473996455,500.0,9.324e-05,2]
[395141397,1764473996483,500.0,9.324e-05,2]
[395141398,1764473996512,565.75654126,9.324e-05,2]
[395141399,1764473996540,500.0,9.324e-05,2]
[395141400,1764473996569,500.0,9.324e-05,2]
[395141401,1764473996597,500.0,9.324e-05,2]
[395141402,1764473996630,500.0,9.324e-05,2]
[395141403,1764473996856,500.0,9.324e-05,2]
[395141404,1764473996886,500.0,9.324e-05,2]
[395141405,1764474005873,500.0,9.324e-05,2]
[395141406,1764474005912,500.0,9.324e-05,2]
[395141407,1764474005957,383.07145099,9.324e-05,2]
[395141408,1764474028733,363.892,9.228e-05,2]
[395141409,1764474039103,-218.35907167,9.322e-05,2]
[395141411,1764474051345,218.35907167,9.228e-05,2]
[395141412,1764474054880,-12.92462556,9.322e-05,2]
[395141413,1764474054902,-368.61203452,9.322e-05,2]
[395141414,1764474056365,-8.02171313,9.322e-05,2]
[395141415,1764474056386,-335.47322186,9.323e-05,2]
[395141416,1764474059132,-556.17082852,9.323e-05,2]
[395141417,1764474060219,-308.35594962,9.323e-05,2]
[395141418,1764474062596,300.0,9.323e-05,2]
[395141419,1764474062640,-500.0,9.324e-05,2]
[395141420,1764474062662,-256.79279371,9.324e-05,2]
[395141421,1764474064397,-243.20720629,9.324e-05,2]
[395141422,1764474064418,-157.18572837,9.324e-05,2]
[395141423,1764474066394,2438.38815196,9.231e-05,2]
[395141427,1764474102639,511.291,9.141e-05,2]
[395141428,1764474108821,-300.0,9.326e-05,2]
[395141429,1764474108848,-227.0,9.326e-05,2]
[395141430,1764474108875,-227.0,9.326e-05,2]
[395141431,1764474122395,300.0,9.326e-05,2]
[395141432,1764474125602,605.95471541,9.326e-05,2]
[395141433,1764474142202,500.0,9.326e-05,2]
[395141434,1764474142234,500.0,9.326e-05,2]
[395141435,1764474142264,500.0,9.326e-05,2]
[395141436,1764474142296,500.0,9.326e-05,2]
[395141437,1764474142337,500.0,9.326e-05,2]
[395141438,1764474142370,500.0,9.326e-05,2]
[395141439,1764474142407,500.0,9.326e-05,2]
[395141440,1764474142444,500.0,9.326e-05,2]
[395141441,1764474142487,500.0,9.326e-05,2]
[395141442,1764474142516,500.0,9.326e-05,2]
[395141443,1764474142548,500.0,9.326e-05,2]
[395141444,1764474142656,499.14542503,9.326e-05,2]
[395141445,1764474142695,500.0,9.326e-05,2]
[395141447,1764474158030,500.0,9.326e-05,2]
[395141448,1764474158079,507.30628236,9.326e-05,2]
[395141449,1764474162290,534.10950106,9.326e-05,2]
[395141450,1764474162362,500.0,9.326e-05,2]
[395141451,1764474164802,500.0,9.326e-05,2]
[395141452,1764474164855,353.49407614,9.326e-05,2]
[395141453,1764474164876,146.50592386,9.326e-05,2]
[395141454,1764474164912,500.0,9.326e-05,2]
[395141455,1764474164961,262.70592963,9.326e-05,2]
[395141456,1764474168733,500.0,9.326e-05,2]
[395141457,1764474168784,500.0,9.326e-05,2]
[395141458,1764474175307,1200.0,9.326e-05,2]
[395141459,1764474175917,500.0,9.326e-05,2]
[395141460,1764474175971,500.0,9.326e-05,2]
[395141461,1764474176024,474.8010354,9.326e-05,2]
[395141462,1764474182467,300.0,9.326e-05,2]
[395141463,1764474183173,500.0,9.326e-05,2]
[395141464,1764474183232,500.0,9.326e-05,2]
[395141465,1764474183268,500.0,9.326e-05,2]
[395141466,1764474183384,500.0,9.326e-05,2]
[395141467,1764474183425,500.0,9.326e-05,2]
[395141468,1764474183466,539.06083085,9.326e-05,2]
[395141469,1764474185935,500.0,9.326e-05,2]
[395141470,1764474194307,500.0,9.326e-05,2]
[395141471,1764474197961,500.0,9.326e-05,2]
[395141472,1764474198018,500.0,9.326e-05,2]
[395141473,1764474200927,76.93628026,9.326e-05,2]
[395141474,1764474200949,423.06371973,9.326e-05,2]
[395141475,1764474202836,500.0,9.326e-05,2]
[395141476,1764474202867,500.0,9.326e-05,2]
[395141477,1764474202898,500.0,9.326e-05,2]
[395141478,1764474202961,500.0,9.326e-05,2]
[395141479,1764474202994,500.0,9.326e-05,2]
[395141480,1764474203070,500.0,9.326e-05,2]
[395141481,1764474203120,552.05697251,9.326e-05,2]
[395141482,1764474203202,509.11960252,9.233e-05,2]
[395141483,1764474204239,500.0,9.326e-05,2]
[395141484,1764474204277,500.0,9.326e-05,2]
[395141485,1764474204316,500.0,9.326e-05,2]
[395141486,1764474204347,500.0,9.326e-05,2]
[395141487,1764474204638,500.0,9.326e-05,2]
[395141488,1764474204672,500.0,9.326e-05,2]
[395141489,1764474204708,500.0,9.326e-05,2]
[395141490,1764474204737,500.0,9.326e-05,2]
[395141491,1764474204772,500.0,9.326e-05,2]
[395141492,1764474204802,500.0,9.326e-05,2]
[395141493,1764474204831,500.0,9.326e-05,2]
[395141494,1764474204867,15.76970524,9.326e-05,2]
[395141495,1764474204890,484.23029476,9.326e-05,2]
[395141496,1764474204920,500.0,9.326e-05,2]
[395141497,1764474204961,500.0,9.326e-05,2]
[395141498,1764474204998,500.0,9.326e-05,2]
[395141499,1764474205030,500.0,9.326e-05,2]
[395141500,1764474205062,500.0,9.326e-05,2]
[395141501,1764474205092,500.0,9.326e-05,2]
[395141502,1764474205122,500.0,9.326e-05,2]
[395141503,1764474205241,500.0,9.326e-05,2]
[395141504,1764474205274,500.0,9.326e-05,2]
[395141505,1764474205320,500.0,9.326e-05,2]
[395141506,1764474205368,500.0,9.326e-05,2]
[395141507,1764474205405,500.0,9.326e-05,2]
[395141508,1764474205438,500.0,9.326e-05,2]
[395141509,1764474205476,500.0,9.326e-05,2]
[395141510,1764474205507,500.0,9.326e-05,2]
[395141511,1764474205537,500.0,9.326e-05,2]
[395141512,1764474205567,500.0,9.326e-05,2]
[395141513,1764474205608,500.0,9.326e-05,2]
[395141514,1764474205652,500.0,9.326e-05,2]
[395141515,1764474205687,15.77970524,9.326e-05,2]
[395141516,1764474205711,484.22029476,9.326e-05,2]
[395141517,1764474205742,500.0,9.326e-05,2]
[395141518,1764474205772,500.0,9.326e-05,2]
[395141519,1764474205811,500.0,9.326e-05,2]
[395141520,1764474205851,500.0,9.326e-05,2]
[395141521,1764474205895,500.0,9.326e-05,2]
[395141522,1764474205939,500.0,9.326e-05,2]
[395141523,1764474205984,500.0,9.326e-05,2]
[395141524,1764474206014,448.42390195,9.326e-05,2]
[395141525,1764474206048,500.0,9.326e-05,2]
[395141526,1764474206095,500.0,9.326e-05,2]
[395141527,1764474206128,500.0,9.326e-05,2]
[395141528,1764474206162,500.0,9.326e-05,2]
[395141529,1764474206194,500.0,9.326e-05,2]
[395141530,1764474206234,500.0,9.326e-05,2]
[395141533,1764474214328,500.0,9.326e-05,2]
[395141534,1764474214372,500.0,9.326e-05,2]
[395141535,1764474214400,500.0,9.326e-05,2]
[395141536,1764474214445,500.0,9.326e-05,2]
[395141537,1764474214474,500.0,9.326e-05,2]
[395141538,1764474214509,67.36580329,9.326e-05,2]
[395141539,1764474214530,432.63419671,9.326e-05,2]
[395141540,1764474214557,500.0,9.326e-05,2]
[395141541,1764474214585,500.0,9.326e-05,2]
[395141542,1764474214619,500.0,9.326e-05,2]
[395141543,1764474214653,500.0,9.326e-05,2]
[395141544,1764474214687,500.0,9.326e-05,2]
[395141545,1764474214730,500.0,9.326e-05,2]
[395141546,1764474214800,500.0,9.326e-05,2]
[395141547,1764474214856,650.0,9.326e-05,2]
[395141548,1764474214904,500.0,9.326e-05,2]
[395141549,1764474225992,509.11960252,9.233e-05,2]
[395141550,1764474242609,300.0,9.326e-05,2]
[395141551,1764474248222,509.11960252,9.233e-05,2]
[395141553,1764474270422,509.11960252,9.233e-05,2]
[395141554,1764474292637,509.11960252,9.233e-05,2]
[395141555,1764474301279,300.0,9.326e-05,2]
[395141556,1764474302157,300.0,9.326e-05,2]
[395141557,1764474304090,774.08834729,9.232e-05,2]
[395141561,1764474308561,1200.0,9.326e-05,2]
[395141562,1764474309990,500.0,9.322e-05,2]
[395141563,1764474310615,500.0,9.322e-05,2]
[395141564,1764474312285,231.28369723,9.322e-05,2]
[395141565,1764474312323,500.0,9.322e-05,2]
[395141566,1764474312933,551.7289665,9.322e-05,2]
[395141567,1764474313013,500.0,9.322e-05,2]
[395141568,1764474316411,509.11960252,9.233e-05,2]
[395141569,1764474323957,153.26455555,9.239e-05,2]
[395141570,1764474326447,275.87619999,9.051e-05,2]
[395141571,1764474328556,490.44657776,9.051e-05,2]
[395141572,1764474331087,765.55645497,9.051e-05,2]
[395141573,1764474338817,112.16718811,9.234e-05,2]
[395141574,1764474338840,396.95241441,9.234e-05,2]
[395141575,1764474341128,-190.14576241,9.327e-05,2]
[395141576,1764474361084,318.97384011,9.234e-05,2]
[395141577,1764474362848,300.0,9.326e-05,2]
[395141579,1764474383797,318.97384011,9.234e-05,2]
[395141580,1764474406076,318.97384011,9.234e-05,2]
[395141581,1764474422403,300.0,9.326e-05,2]
[395141582,1764474428844,318.97384011,9.234e-05,2]
[395141583,1764474437111,-318.97384011,9.327e-05,2]
[395141584,1764474437134,-927.2554297,9.327e-05,2]
[395141585,1764474442227,9681.03615989,9.227e-05,2]
[395141586,1764474442252,10000.01,9.227e-05,2]
[395141590,1764474456017,-283.1107853,9.135e-05,2]
[395141592,1764474458894,8605.22396502,9.044e-05,2]
[395141593,1764474459166,-899.00038661,9.135e-05,2]
[395141595,1764474461208,-194.02396766,9.135e-05,2]
[395141598,1764474467690,1394.78603498,9.044e-05,2]
[395141599,1764474467711,185.44874256,9.044e-05,2]
[395141607,1764474482601,159.91,1e-05,2]
[395141608,1764474482994,159.91,1.8e-05,2]
[395141609,1764474483397,159.91,2.6e-05,2]
[395141610,1764474484029,-397.52734274,9.044e-05,2]
[395141612,1764474485701,-373.08342651,9.044e-05,2]
[395141616,1764474488161,-198.83640434,9.044e-05,2]
[395141618,1764474490705,-1066.64641783,9.044e-05,2]
[395141619,1764474490772,410.20434931,8.954e-05,2]
[395141621,1764474494925,-1696.59355887,9.044e-05,2]
[395141626,1764474506684,1410.94914698,8.944e-05,2]
[395141639,1764474551081,-1645.89401014,9.044e-05,2]
[395141640,1764474554085,-2133.61845032,9.044e-05,2]
[395141641,1764474554104,-300.0,9.134e-05,2]
[395141642,1764474554124,-7512.19961075,9.135e-05,2]
[395141643,1764474554143,-425.0,9.226e-05,2]
[395141644,1764474554163,-500.0,9.226e-05,2]
[395141645,1764474554181,-223.87665074,9.226e-05,2]
[395141646,1764474554201,-500.0,9.226e-05,2]
[395141647,1764474554221,-393.22898121,9.226e-05,2]
[395141648,1764474554242,-500.0,9.226e-05,2]
[395141649,1764474554262,-163.86678171,9.226e-05,2]
[395141650,1764474554281,-195.8562144,9.226e-05,2]
[395141651,1764474554299,-500.0,9.226e-05,2]
[395141652,1764474554319,-222.12726945,9.226e-05,2]
[395141653,1764474554337,-644.8423902,9.226e-05,2]
[395141654,1764474554356,-500.0,9.226e-05,2]
[395141655,1764474554375,-394.67299695,9.226e-05,2]
[395141656,1764474554395,-500.0,9.226e-05,2]
[395141657,1764474554414,-350.0,9.226e-05,2]
[395141658,1764474554439,-33563.18666186,9.227e-05,2]
[395141659,1764474554470,-8363.47437832,9.227e-05,2]
[395141660,1764474558095,-69310.82193872,9.227e-05,2]
[395141661,1764474560088,-49323.14584832,9.227e-05,2]
[395141662,1764474568288,-246.28837243,9.135e-05,2]
[395141663,1764474569073,-4341.56438462,9.135e-05,2]
[395141664,1764474569097,-11.59385138,9.227e-05,2]
[395141665,1764474569125,-87412.77416669,9.227e-05,2]
[395141666,1764474594144,-647.61565121,9.044e-05,2]
[395141677,1764474631626,-1017.40640817,9.043e-05,2]
[395141678,1764474631678,-182.59359183,9.043e-05,2]
[395141679,1764474631687,-181.01100945,9.044e-05,2]
[395141818,1764474639232,-315.54938249,9.044e-05,2]
[395141925,1764474640232,-1352.42497568,9.044e-05,2]
[395141971,1764474640837,-298.39943011,9.044e-05,2]
[395142093,1764474642190,-1792.85230811,9.044e-05,2]
[395142099,1764474642212,-225.0,9.044e-05,2]
[395142104,1764474642233,-300.0,9.226e-05,2]
[395142107,1764474642258,-8616.35130747,9.227e-05,2]
[395142551,1764474647679,-481.78271788,9.227e-05,2]
[395142554,1764474648769,-500.0,9.227e-05,2]
[395142559,1764474651097,-182.78402333,9.227e-05,2]
[395142560,1764474652815,-660.4480607,9.227e-05,2]
[395142561,1764474654797,-217.33618788,9.227e-05,2]
[395142562,1764474656222,-396.0,9.227e-05,2]
[395142563,1764474657675,-218.68026489,9.135e-05,2]
[395142564,1764474659203,-500.0,9.135e-05,2]
[395142565,1764474662708,-300.0,9.134e-05,2]
[395142566,1764474662728,-276.99375147,9.135e-05,2]
[395142567,1764474664660,-217.23522047,9.135e-05,2]
[395142568,1764474666102,-676.82389816,9.135e-05,2]
[395142569,1764474667654,-591.86985012,9.135e-05,2]
[395142570,1764474671665,412.88810597,9.044e-05,2]
[395142572,1764474737439,1653.5551987,9.044e-05,2]
[395142574,1764474752333,302.98521066,9.044e-05,2]
[395142575,1764474760120,7630.58148467,9.044e-05,2]
[395142576,1764474760141,541.973901,9.044e-05,2]
[395142588,1764474782581,8172.55538567,9.044e-05,2]
[395142589,1764474797481,502.41378187,9.044e-05,2]
[395142590,1764474805271,783.06693146,9.044e-05,2]
[395142591,1764474805296,7389.48845421,9.044e-05,2]
[395142594,1764474856822,8172.55538567,8.954e-05,2]
[395142598,1764474864435,1214.63686352,8.954e-05,2]
[395142600,1764474865752,211.41935685,8.944e-05,2]
[395142610,1764474880666,8172.55538567,8.954e-05,2]
[395142618,1764474903809,1102.79516077,8.954e-05,2]
[395142619,1764474903833,393.25349163,8.954e-05,2]
[395142620,1764474906610,7421.5091915,8.226e-05,2]
[395142624,1764474924805,-172.65976045,9.043e-05,2]
[395142630,1764474927711,-279.87695869,9.043e-05,2]
[395142631,1764474930174,-239.46328086,9.043e-05,2]
[395142632,1764474930196,-112.92700301,9.044e-05,2]
[395142633,1764474932231,-544.67642743,9.044e-05,2]
[395142634,1764474934900,-279.87695869,9.044e-05,2]
[395142635,1764474938240,-500.0,9.044e-05,2]
[395142636,1764474938281,151.67056887,0.000215,120]
[395142637,1764474942146,-500.0,9.044e-05,2]
[395142638,1764474943847,-220.12304131,9.044e-05,2]
[395142644,1764474945810,-367.73275744,9.044e-05,2]
[395142645,1764474948056,-327.34023955,9.044e-05,2]
[395142646,1764474951930,-500.0,9.044e-05,2]
[395142647,1764474955587,-500.0,9.044e-05,2]
[395142662,1764475025405,4319.87895824,8.954e-05,2]
[395142665,1764475040769,-528.9826647,9.089e-05,2]
[395142666,1764475047808,2501.45281231,9.044e-05,2]
[395142667,1764475057285,-2501.45281231,9.135e-05,2]
[395142669,1764475070229,231.28369723,9.129e-05,2]
[395142673,1764475093097,231.28369723,9.129e-05,2]
[395142675,1764475115331,231.28369723,9.129e-05,2]
[395142676,1764475138049,231.28369723,9.129e-05,2]
[395142678,1764475161211,231.28369723,9.129e-05,2]
[395142679,1764475184107,231.28369723,9.129e-05,2]
[395142685,1764475206481,231.28369723,9.129e-05,2]
[395142686,1764475229397,231.28369723,9.129e-05,2]
[395142687,1764475251668,231.28369723,9.129e-05,2]
[395142691,1764475273918,231.28369723,9.129e-05,2]
[395142696,1764475296998,231.28369723,9.129e-05,2]
[395142697,1764475319800,231.28369723,9.129e-05,2]
[395142700,1764475342805,231.28369723,9.129e-05,2]
[395142713,1764475365141,231.28369723,9.129e-05,2]
[395142723,1764475387365,231.28369723,9.129e-05,2]
[395142724,1764475411379,231.28369723,9.129e-05,2]
[395142725,1764475433811,231.28369723,9.129e-05,2]
[395142727,1764475452564,6299.47084432,9.127e-05,2]
[395142728,1764475452587,10000.01,9.127e-05,2]
[395142729,1764475452609,10000.01,9.127e-05,2]
[395142730,1764475452634,10000.01,9.127e-05,2]
[395142731,1764475452656,10000.01,9.127e-05,2]
[395142732,1764475452678,10000.01,9.127e-05,2]
[395142733,1764475452702,10000.01,9.127e-05,2]
[395142734,1764475452725,10000.01,9.127e-05,2]
[395142735,1764475452748,10000.01,9.127e-05,2]
[395142736,1764475452770,10000.01,9.127e-05,2]
[395142737,1764475458554,-3468.85579429,9.036e-05,2]
[395142738,1764475458735,-3062.29841142,9.036e-05,2]
[395142739,1764475532233,416.61240716,8.956e-05,2]
[395142740,1764475538103,-300.0,9.126e-05,2]
[395142741,1764475538124,-300.0,9.126e-05,2]
[395142742,1764475538144,-300.0,9.126e-05,2]
[395142743,1764475538164,-28.61107434,9.126e-05,2]
[395142758,1764475588343,3458.80077,8.297e-05,2]
[395142759,1764475588365,2888.3005894,8.297e-05,2]
[395142760,1764475616081,-271.38892566,9.126e-05,2]
[395142761,1764475616112,-1200.0,9.126e-05,2]
[395142762,1764475616139,-33.44993064,9.126e-05,2]
[395142763,1764475626086,-300.0,9.125e-05,2]
[395142764,1764475626108,-518.40301141,9.126e-05,2]
[395142765,1764475626127,-57.61680508,9.126e-05,2]
[395142766,1764475629088,-286.40827121,9.126e-05,2]
[395142767,1764475629110,-1.18032141,9.126e-05,2]
[395142768,1764475630485,-154.8536333,9.126e-05,2]
[395142769,1764475631640,-341.6166106,9.126e-05,2]
[395142770,1764475632073,-3.48266619,9.126e-05,2]
[395142771,1764475632094,-190.72615621,9.126e-05,2]
[395142772,1764475632117,-134.72996415,9.126e-05,2]
[395142773,1764475633754,-169.61272253,9.126e-05,2]
[395142774,1764475635267,-155.88737735,9.126e-05,2]
[395142775,1764475636761,-39.76993597,9.126e-05,2]
[395142776,1764475636785,-215.47878552,9.126e-05,2]
[395142777,1764475637080,-120.81357216,9.126e-05,2]
[395142778,1764475637100,-81.04285439,9.126e-05,2]
[395142779,1764475638780,-301.29462317,9.126e-05,2]
[395142780,1764475642386,-158.90524772,9.126e-05,2]
[395142781,1764475642408,-61.64055408,9.126e-05,2]
[395142782,1764475644741,-198.70537683,9.126e-05,2]
[395142783,1764475646243,-198.70537683,9.126e-05,2]
[395142786,1764475706195,276.49,0.0002,30]
[395142788,1764475750074,-633.8228025,9.125e-05,2]
[395142789,1764475759084,-566.1771975,9.125e-05,2]
[395142790,1764475759108,-300.0,9.125e-05,2]
[395142791,1764475759130,-11815.09091125,9.126e-05,2]
[395142792,1764475768066,-7708.78471882,9.126e-05,2]
[395142793,1764475769061,-1997.67387513,9.126e-05,2]
[395142816,1764475832071,-22.42849184,9.122e-05,2]
[395142817,1764475834314,213.1429226,8.956e-05,2]
[395142820,1764475836518,383.27360343,8.956e-05,2]
[395142829,1764475838154,-17.20595925,9.122e-05,2]
[395143073,1764475840660,-2e-08,9.122e-05,2]
[395143075,1764475840672,-191.64924612,9.122e-05,2]
[395143077,1764475840680,-167.85175392,9.125e-05,2]
[395143328,1764475843390,-132.14824608,9.125e-05,2]
[395143330,1764475843400,-225.0,9.125e-05,2]
[395143332,1764475843409,-420.71455707,9.125e-05,2]
[395143575,1764475845985,-79.28544293,9.125e-05,2]
[395143577,1764475845994,-500.0,9.125e-05,2]
[395143579,1764475846003,-500.0,9.125e-05,2]
[395143581,1764475846013,-500.0,9.125e-05,2]
[395143583,1764475846022,-500.0,9.125e-05,2]
[395143585,1764475846031,-500.0,9.125e-05,2]
[395143587,1764475846040,-278.28498632,9.125e-05,2]
[395143589,1764475846049,-500.0,9.125e-05,2]
[395143591,1764475846059,-198.70537683,9.125e-05,2]
[395143593,1764475846067,-500.0,9.125e-05,2]
[395143595,1764475846077,-371.22153573,9.125e-05,2]
[395143597,1764475846085,-3169.87438388,9.126e-05,2]
[395144107,1764475851060,308.54021869,9.035e-05,2]
[395145093,1764475866647,300.0,9.034e-05,2]
[395145133,1764475911611,300.0,9.034e-05,2]
[395145134,1764475934302,300.0,9.034e-05,2]
[395145135,1764475956539,300.0,9.034e-05,2]
[395145136,1764475979192,1500.0,9.034e-05,2]
[395145137,1764476001927,275.00472103,9.034e-05,2]
[395145138,1764476033294,-1200.0,9.125e-05,2]
[395145139,1764476033326,-300.0,9.125e-05,2]
[395145141,1764476042377,300.0,9.125e-05,2]
[395145159,1764476102210,300.0,9.125e-05,2]
[395145160,1764476102307,300.0,9.125e-05,2]
[395145161,1764476108830,1200.0,9.125e-05,2]
[395145162,1764476112180,231.28369723,9.122e-05,2]
[395145163,1764476162604,300.0,9.125e-05,2]
[395145164,1764476206638,250.2030881,8.306e-05,2]
[395145166,1764476222396,300.0,9.125e-05,2]
[395145167,1764476232769,7118.52321467,8.306e-05,2]
[395145168,1764476232793,9027.46892843,8.306e-05,2]
[395145170,1764476241357,513.38983378,9.034e-05,2]
[395145171,1764476249196,459.15123779,9.034e-05,2]
[395145172,1764476249218,54.23859599,9.034e-05,2]
[395145173,1764476256866,-513.38983378,9.126e-05,2]
[395145174,1764476264724,1245.33682239,9.035e-05,2]
[395145177,1764476274359,1200.0,9.125e-05,2]
[395145179,1764476282526,300.0,9.125e-05,2]
[395145180,1764476290331,235.41025107,9.126e-05,2]
[395145184,1764476327309,8264.59974893,9.126e-05,2]
[395145185,1764476327334,10000.01,9.126e-05,2]
[395145186,1764476327356,10000.01,9.126e-05,2]
[395145187,1764476327377,10000.01,9.126e-05,2]
[395145188,1764476327399,10000.01,9.126e-05,2]
[395145189,1764476327422,1735.36025107,9.126e-05,2]
[395145191,1764476342339,300.0,9.125e-05,2]
[395145193,1764476402121,300.0,9.125e-05,2]
[395145194,1764476405126,225.0,9.125e-05,2]
[395145195,1764476408484,1200.0,9.125e-05,2]
[395145196,1764476412131,231.28369723,9.126e-05,2]
[395145199,1764476463191,300.0,9.125e-05,2]
[395145200,1764476469883,7443.72630277,9.027e-05,2]
[395145201,1764476469908,10000.01,9.027e-05,2]
[395145202,1764476469934,10000.01,9.027e-05,2]
[395145203,1764476469960,10000.01,9.027e-05,2]
[395145204,1764476469985,10000.01,9.027e-05,2]
[395145205,1764476480252,370.81756962,8.937e-05,2]
[395145206,1764476488069,552.61016622,8.937e-05,2]
[395145209,1764476503600,250.0,8.937e-05,2]
[395145224,1764476576662,315.07619988,8.955e-05,2]